bitfinex-derivatives/quotes_ETHF0:USTF0_20240928
["timestamp","ask_amount","ask_price","bid_price","bid_amount"]
[1727508750072,1.46174395,2678.0,2677.9,0.37329]
[1727508750469,1.46174395,2678.1,2677.9,3.7344]
[1727508750667,1.46174395,2678.2,2678.0,3.7344]
[1727508750878,1.46174395,2678.2,2678.1,0.4047]
[1727508751079,1.46174395,2678.2,2678.1,0.77796]
[1727508751272,1.46174395,2678.2,2678.1,4.51156]
[1727508752679,1.46174395,2678.2,2678.1,4.1383]
[1727508752977,2.80174395,2678.3,2678.2,0.37325]
[1727508754282,2.80174395,2678.3,2678.2,0.75035]
[1727508754881,1.46174395,2678.3,2678.2,4.48395]
[1727508755083,1.46174395,2678.4,2678.3,0.37324]
[1727508755284,1.46174395,2678.5,2678.3,0.75452]
[1727508756578,1.83495395,2678.5,2678.3,0.75452]
[1727508756879,1.46174395,2678.5,2678.4,0.37322]
[1727508757080,2.80174395,2678.6,2678.4,0.37322]
[1727508757285,2.80174395,2678.6,2678.5,0.37321]
[1727508758079,2.80174395,2678.6,2678.3,0.3813]
[1727508758688,1.46174395,2678.6,2678.5,0.37321]
[1727508758886,3.18844395,2678.7,2678.5,0.37321]
[1727508759079,3.18844395,2678.7,2678.6,0.3948]
[1727508759280,2.09988,2678.7,2678.6,0.7665]
[1727508759480,1.34,2678.7,2678.6,1.13969]
[1727508760786,4.66954395,2678.8,2678.6,0.7665]
[1727508761086,0.3934,2679.1,2678.7,3.7328]
[1727508761284,0.3934,2679.1,2678.9,0.37314]
[1727508761478,0.76653,2679.1,2678.9,0.37314]
[1727508761692,0.76653,2679.1,2679.0,0.4036]
[1727508761886,0.3934,2679.1,2679.0,0.4036]
[1727508762093,0.76652,2679.1,2679.0,0.4036]
[1727508762492,2.10652,2679.1,2679.0,0.4036]
[1727508762693,1.7334,2679.1,2679.0,0.4036]
[1727508765595,0.3934,2679.1,2679.0,0.4036]
[1727508766203,0.7803,2679.2,2679.0,8.32294312]
[1727508766396,0.7803,2679.2,2679.1,4.10592]
[1727508767105,0.7803,2679.2,2679.1,3.7328]
[1727508768504,0.7803,2679.2,2679.1,4.10592]
[1727508769197,0.7803,2679.2,2679.1,3.7328]
[1727508770896,0.7803,2679.2,2679.1,4.10592]
[1727508771996,0.7803,2679.2,2679.1,0.37312]
[1727508772505,0.7803,2679.2,2679.1,4.10592]
[1727508773202,0.7803,2679.2,2679.1,0.37312]
[1727508773408,0.7803,2679.2,2679.1,4.10592]
[1727508773799,0.7803,2679.2,2679.1,0.37312]
[1727508776100,1.34,2679.4,2679.0,1.3486]
[1727508776303,0.4021,2679.4,2679.1,3.578]
[1727508776503,0.4021,2679.4,2679.3,0.3731]
[1727508777200,0.3704,2679.5,2679.4,0.37308]
[1727508777407,0.7753,2679.7,2679.6,0.37305]
[1727508777606,0.7753,2679.7,2679.5,0.37306]
[1727508778202,0.7753,2679.7,2679.6,0.77915]
[1727508779609,0.7753,2679.7,2679.6,1.54585]
[1727508780013,0.7753,2679.7,2679.6,3.83085]
[1727508781515,0.3842,2679.9,2679.8,0.37303]
[1727508781717,1.134,2679.9,2679.8,0.37303]
[1727508784507,3.96099,2680.1,2679.9,0.37301]
[1727508784708,3.588,2680.1,2679.9,0.37301]
[1727508784903,3.96099,2680.1,2679.8,0.37302]
[1727508785105,0.3802,2680.1,2680.0,1.713]
[1727508785704,0.3802,2680.1,2680.0,2.0943]
[1727508788005,0.7617,2680.2,2680.1,0.37298]
[1727508789307,4.5478,2680.5,2680.0,2.4778]
[1727508789308,3.2078,2680.5,2680.0,2.4778]
[1727508789508,3.2078,2680.5,2680.4,1.34]
[1727508789816,0.347,2680.7,2680.6,0.37292]
[1727508790015,0.3881,2680.8,2680.7,0.3729]
[1727508790216,0.7319,2681.0,2680.9,0.37287]
[1727508790517,0.3849,2681.0,2680.9,0.37287]
[1727508791223,1.16265,2681.1,2681.0,0.37286]
[1727508791224,0.3881,2681.1,2681.0,0.37286]
[1727508791422,0.3881,2681.1,2681.0,1.71286]
[1727508791617,0.3881,2681.1,2681.0,1.34]
[1727508791814,1.7281,2681.1,2680.5,1.37949681]
[1727508792118,1.7281,2681.1,2680.7,1.71289]
[1727508792119,0.3867,2681.0,2680.7,1.71289]
[1727508792427,0.3867,2681.0,2680.7,0.37289]
[1727508792620,0.37287,2680.9,2680.7,0.945]
[1727508792828,0.37289,2680.8,2680.7,0.945]
[1727508795221,0.3729,2680.8,2680.7,0.945]
[1727508795618,0.77478,2680.9,2680.7,0.945]
[1727508795820,0.4019,2680.9,2680.7,0.945]
[1727508796221,0.37289,2680.8,2680.7,0.945]
[1727508798929,0.37289,2680.8,2680.6,0.37291]
[1727508800323,0.4019,2680.9,2680.5,1.3477]
[1727508800523,0.4019,2680.9,2680.8,0.37289]
[1727508802827,0.77478,2680.9,2680.7,0.37289]
[1727508804526,0.4019,2680.9,2680.6,0.7775]
[1727508804722,0.4019,2680.9,2680.8,2.91]
[1727508804921,0.4019,2680.9,2680.8,3.28289]
[1727508809233,0.4019,2680.9,2680.8,2.91]
[1727508811232,0.77477,2680.9,2680.8,2.91]
[1727508812234,0.77477,2680.9,2680.7,1.71289]
[1727508813328,0.37289,2680.8,2680.7,1.34]
[1727508813536,0.37289,2680.8,2680.7,2.286]
[1727508814439,0.77478,2680.9,2680.7,2.6589]
[1727508814639,0.77478,2680.9,2680.7,2.65889]
[1727508814836,0.77478,2680.9,2680.7,2.286]
[1727508815337,0.77478,2680.9,2680.7,2.65889]
[1727508819343,0.77478,2680.9,2680.7,1.71289]
[1727508819746,0.77478,2680.9,2680.8,0.37289]
[1727508820244,0.77478,2680.9,2680.7,1.71289]
[1727508820543,0.77478,2680.9,2680.7,1.34]
[1727508820946,0.77478,2680.9,2680.7,1.71289]
[1727508823144,0.77478,2680.9,2680.8,0.3844]
[1727508824336,2.23652395,2680.9,2680.8,0.3844]
[1727508825043,2.23652395,2680.9,2680.7,1.71289]
[1727508825341,5.19214395,2680.8,2680.5,4.5478]
[1727508825541,0.4064,2680.7,2680.5,5.4928]
[1727508825733,0.7844,2680.7,2680.5,5.4928]
[1727508825933,0.7844,2680.7,2680.5,2.285]
[1727508826139,0.37292,2680.6,2680.5,2.65792]
[1727508826748,0.37292,2680.6,2680.5,1.71292]
[1727508827335,2.61905395,2680.7,2680.5,1.71292]
[1727508827741,2.61905395,2680.7,2680.6,0.37292]
[1727508827946,1.15731,2680.7,2680.6,0.37292]
[1727508828541,2.61905395,2680.7,2680.6,0.37292]
[1727508830447,1.15731,2680.7,2680.6,0.37292]
[1727508831044,1.15731,2680.7,2680.5,1.34]
[1727508831350,1.46544943,2680.6,2680.5,1.71293]
[1727508832940,2.72963845,2680.7,2680.6,0.37292]
[1727508833141,2.35672845,2680.7,2680.6,0.37292]
[1727508833552,2.35672845,2680.7,2680.6,0.77902]
[1727508834145,2.72962845,2680.7,2680.6,0.77902]
[1727508834346,2.73512483,2680.7,2680.6,0.77902]
[1727508834554,3.21721057,2680.7,2680.6,0.77902]
[1727508835955,0.4064,2680.7,2680.6,0.77902]
[1727508836258,0.77849,2680.8,2680.7,0.3729]
[1727508836557,0.77849,2680.8,2680.7,1.7129]
[1727508836748,0.77849,2680.8,2680.7,2.1209]
[1727508838860,0.77849,2680.8,2680.7,1.748]
[1727508840349,0.77849,2680.8,2680.7,2.1209]
[1727508840552,0.77849,2680.8,2680.7,1.748]
[1727508841358,0.77849,2680.8,2680.7,2.1209]
[1727508841756,0.77849,2680.8,2680.7,1.748]
[1727508843458,0.77849,2680.8,2680.7,2.1209]
[1727508844061,0.77849,2680.8,2680.7,1.748]
[1727508844463,0.77849,2680.8,2680.7,2.1209]
[1727508844761,0.77849,2680.8,2680.7,1.748]
[1727508845864,0.77849,2680.8,2680.7,2.1209]
[1727508847466,0.37289,2680.8,2680.7,2.1209]
[1727508847975,0.37288,2680.9,2680.8,0.37289]
[1727508848163,3.30941412,2681.0,2680.9,0.37287]
[1727508848364,3.30941412,2681.0,2680.9,1.71287]
[1727508848755,2.93654412,2681.0,2680.9,1.71287]
[1727508849969,2.44644564,2681.0,2680.9,1.71287]
[1727508850362,2.44644564,2681.0,2680.9,5.44327]
[1727508851764,1.9568368,2681.0,2680.9,19.27492497]
[1727508851957,1.46752711,2681.2,2681.1,0.37285]
[1727508852160,1.9568368,2681.3,2681.1,0.37285]
[1727508852161,1.9568368,2681.3,2681.1,3.5260775]
[1727508852472,1.9568368,2681.3,2681.2,8.55716497]
[1727508852473,2.3296568,2681.3,2681.2,8.55716497]
[1727508852674,1.9568368,2681.3,2681.2,4.86273]
[1727508853267,2.3296568,2681.3,2681.2,1.2821]
[1727508853472,2.3296568,2681.3,2681.2,2.6221]
[1727508853666,1.9568368,2681.3,2681.2,2.6221]
[1727508854477,2.3296568,2681.3,2681.2,2.6221]
[1727508854869,3.4587468,2681.4,2681.2,2.99493]
[1727508855068,1.95471004,2681.4,2681.3,0.37282]
[1727508855375,1.95473614,2681.4,2681.3,0.37282]
[1727508856179,2.81924564,2681.5,2681.3,0.37282]
[1727508856485,1.95428276,2681.4,2681.3,0.37282]
[1727508856990,0.37282,2681.3,2681.2,0.3701]
[1727508857189,2.70210276,2681.3,2681.2,1.2821]
[1727508857394,2.70210276,2681.3,2681.2,1.65493]
[1727508857688,0.74782,2681.3,2681.2,1.2821]
[1727508858196,0.74782,2681.3,2681.2,2.6221]
[1727508858583,0.375,2681.3,2681.2,2.99493]
[1727508859291,0.74782,2681.3,2681.2,2.99493]
[1727508859589,0.375,2681.3,2681.2,2.99493]
[1727508859797,1.8399688,2681.3,2681.2,2.99493]
[1727508859980,0.375,2681.3,2681.2,2.99493]
[1727508860583,2.21263238,2681.3,2681.2,2.99493]
[1727508860791,2.21263238,2681.3,2681.2,2.6221]
[1727508860792,0.74782,2681.3,2681.2,2.6221]
[1727508860991,1.13362,2681.3,2681.2,1.34]
[1727508861485,2.5983083,2681.3,2681.2,1.71283]
[1727508862182,2.2254883,2681.3,2681.2,1.71283]
[1727508862382,2.5983083,2681.3,2681.2,1.71283]
[1727508863281,2.2254883,2681.3,2681.2,1.71283]
[1727508865492,1.8396883,2681.3,2681.2,1.71283]
[1727508865691,1.4646883,2681.3,2681.2,1.71283]
[1727508868687,1.4646883,2681.4,2681.3,0.37282]
[1727508868888,2.32708276,2681.5,2681.3,1.71282]
[1727508869187,1.95428276,2681.5,2681.4,0.3728]
[1727508869382,1.95428276,2681.5,2681.4,0.7472]
[1727508871294,3.49076276,2681.6,2681.4,0.7472]
[1727508871600,3.49076276,2681.6,2681.5,1.34]
[1727508872104,3.49076276,2681.6,2681.5,1.71279]
[1727508872493,3.49076276,2681.6,2681.5,1.34]
[1727508874190,3.49076276,2681.6,2681.5,1.71279]
[1727508874498,3.49076276,2681.6,2681.5,1.34]
[1727508875300,3.09766276,2681.6,2681.5,1.34]
[1727508875496,3.09766276,2681.6,2681.5,1.7315]
[1727508876599,2.32706276,2681.6,2681.5,1.7315]
[1727508877787,0.37278,2681.6,2681.5,1.7315]
[1727508878103,0.74198,2681.6,2681.5,1.7315]
[1727508878293,2.69626276,2681.6,2681.5,1.7315]
[1727508882303,1.95428276,2681.7,2681.6,0.37278]
[1727508882605,2.72384276,2681.8,2681.6,0.37278]
[1727508882799,2.72384276,2681.8,2681.7,1.34]
[1727508883805,0.76956,2681.8,2681.7,1.34]
[1727508884304,0.76956,2681.8,2681.7,1.7272]
[1727508885005,0.37276,2681.8,2681.7,1.7272]
[1727508885303,0.37275,2681.8,2681.7,1.7272]
[1727508885698,3.08602276,2681.9,2681.7,2.09996]
[1727508885898,1.46395924,2681.8,2681.7,2.09996]
[1727508886093,1.46396906,2681.8,2681.7,2.09996]
[1727508886299,3.08602276,2681.9,2681.7,3.00296]
[1727508886506,1.46387022,2681.8,2681.7,3.00296]
[1727508887008,1.46387721,2681.8,2681.7,3.00296]
[1727508887805,1.46387721,2681.8,2681.7,6.21076]
[1727508888612,1.46387721,2681.8,2681.7,5.838]
[1727508888801,3.08602276,2681.9,2681.7,6.21076]
[1727508889112,1.46392667,2681.8,2681.7,6.21076]
[1727508889813,1.46392667,2681.8,2681.7,5.838]
[1727508890601,1.46392667,2681.8,2681.7,3.00296]
[1727508893498,3.08602276,2681.9,2681.7,3.00296]
[1727508894107,3.08602276,2681.9,2681.7,2.6302]
[1727508894309,1.46472074,2681.8,2681.7,2.6302]
[1727508894606,3.08602276,2681.9,2681.7,2.6302]
[1727508895701,3.08601276,2681.9,2681.8,4.1070883]
[1727508895896,2.71328276,2681.9,2681.8,4.1070883]
[1727508896207,3.08601276,2681.9,2681.8,4.1070883]
[1727508897607,3.08601276,2681.9,2681.8,4.5107883]
[1727508898000,2.71328276,2681.9,2681.8,4.5107883]
[1727508898204,1.95428276,2681.9,2681.8,4.8835383]
[1727508898506,2.81916564,2682.1,2681.9,0.37273]
[1727508898507,1.95428276,2682.0,2681.9,0.37273]
[1727508898703,1.95428276,2682.0,2681.9,2.08193]
[1727508898899,1.95428276,2682.0,2681.9,1.7092]
[1727508899101,1.95428276,2682.0,2681.9,2.08193]
[1727508899298,2.72649276,2682.1,2681.9,2.08193]
[1727508899503,2.72649276,2682.1,2681.9,1.7092]
[1727508900906,2.72649276,2682.1,2681.9,2.08193]
[1727508901310,2.35378276,2682.1,2681.9,2.08193]
[1727508901609,2.72649276,2682.1,2681.9,2.08193]
[1727508903603,0.3995,2682.1,2682.0,3.58052]
[1727508904301,0.3995,2682.1,2682.0,3.2078]
[1727508906217,0.3995,2682.1,2682.0,3.58052]
[1727508906412,1.46421208,2682.1,2682.0,3.58052]
[1727508906712,0.386,2682.2,2682.1,0.37271]
[1727508906915,1.85008318,2682.2,2682.1,1.71271]
[1727508907113,1.85008553,2682.2,2682.1,1.71271]
[1727508907315,1.84995417,2682.2,2682.1,1.34]
[1727508907513,0.386,2682.2,2682.1,1.34]
[1727508907814,1.84998454,2682.2,2682.1,1.34]
[1727508908005,2.32778276,2682.3,2682.1,1.71271]
[1727508908403,1.46398736,2682.2,2682.1,1.71271]
[1727508908809,1.46398736,2682.2,2682.1,1.34]
[1727508910815,1.83748736,2682.3,2682.1,1.34]
[1727508911014,1.83748736,2682.3,2682.2,0.877]
[1727508911209,2.21016736,2682.3,2682.2,0.877]
[1727508911516,2.20980685,2682.3,2682.2,0.877]
[1727508913209,1.83712685,2682.3,2682.2,0.877]
[1727508913406,2.26232685,2682.4,2682.3,0.37268]
[1727508913713,1.46362685,2682.6,2682.5,0.37265]
[1727508913908,1.46362685,2682.6,2682.5,1.34]
[1727508915812,1.46362685,2682.6,2682.5,1.71265]
[1727508916018,1.46362685,2682.7,2682.6,0.37264]
[1727508916217,1.46362685,2682.7,2682.6,2.08184]
[1727508916416,1.46362685,2682.7,2682.6,1.7092]
[1727508916614,1.46362685,2682.7,2682.6,2.08184]
[1727508916918,2.25272685,2682.8,2682.6,1.7092]
[1727508917115,1.46362685,2682.9,2682.7,4.97682]
[1727508917316,2.21212685,2683.0,2682.8,1.71261]
[1727508917525,2.21212685,2683.0,2682.8,5.24649524]
[1727508918009,2.21212685,2683.0,2682.8,5.61910524]
[1727508918213,0.7485,2683.0,2682.8,5.61910524]
[1727508918517,0.405,2683.1,2683.0,0.37258]
[1727508918715,0.405,2683.1,2683.0,1.71258]
[1727508919025,0.3729,2683.3,2683.0,2.09708]
[1727508919228,0.3729,2683.3,2683.2,1.34]
[1727508919522,0.3729,2683.3,2683.2,2.217]
[1727508921815,0.74544,2683.3,2683.2,2.217]
[1727508922220,0.3729,2683.3,2683.2,2.217]
[1727508923721,0.7816,2683.4,2683.2,2.58955]
[1727508923928,0.3809,2683.6,2683.2,6.48863683]
[1727508924123,0.3809,2683.6,2683.4,1.34]
[1727508924720,0.3809,2683.6,2683.4,1.71253]
[1727508924925,0.3809,2683.6,2683.4,1.34]
[1727508925319,0.3809,2683.6,2683.4,1.7422]
[1727508925517,0.3809,2683.6,2683.4,2.11473]
[1727508925922,0.7829,2683.7,2683.5,4.29199063]
[1727508926116,0.7829,2683.7,2683.6,1.34]
[1727508927731,1.15538,2683.7,2683.6,1.34]
[1727508928230,0.7829,2683.7,2683.6,1.34]
[1727508928528,0.7829,2683.7,2683.6,2.206]
[1727508930237,1.15538,2683.7,2683.6,2.206]
[1727508930735,0.7829,2683.7,2683.6,2.206]
[1727508932622,1.15538,2683.7,2683.6,2.206]
[1727508933022,0.7829,2683.7,2683.6,2.206]
[1727508934328,0.7829,2683.7,2683.6,2.949]
[1727508934639,3.2078,2684.1,2683.6,10.36687854]
[1727508934836,0.7811,2684.2,2684.0,1.34]
[1727508935133,0.7811,2684.2,2684.1,1.34]
[1727508935627,0.7811,2684.2,2684.1,1.7199]
[1727508937128,0.7811,2684.2,2684.1,2.5859]
[1727508937723,0.7811,2684.2,2684.1,2.9833]
[1727508938330,0.7811,2684.2,2684.1,2.206]
[1727508938535,1.15352,2684.2,2684.1,2.206]
[1727508938731,0.7811,2684.2,2684.1,2.206]
[1727508939140,1.15352,2684.2,2684.1,2.206]
[1727508939634,0.7811,2684.2,2684.1,2.206]
[1727508940036,1.15352,2684.2,2684.1,2.206]
[1727508941140,0.7811,2684.2,2684.1,1.83357]
[1727508941331,1.15352,2684.2,2684.1,1.83357]
[1727508943345,1.15352,2684.2,2684.1,2.206]
[1727508943639,1.15352,2684.2,2684.1,1.34]
[1727508944335,10.5067,2684.2,2683.2,3.2078]
[1727508944540,0.37246,2683.9,2683.6,0.37249]
[1727508944733,0.8014,2683.8,2683.6,0.37249]
[1727508944934,1.17388,2683.8,2683.5,3.9615]
[1727508945246,0.37249,2683.7,2683.5,3.96151]
[1727508945431,0.3725,2683.6,2683.5,4.455]
[1727508945632,0.37249,2683.7,2683.5,5.795]
[1727508945938,0.37249,2683.7,2683.6,1.34]
[1727508946133,4.13895,2684.0,2683.6,1.34]
[1727508946134,3.2078,2684.0,2683.6,1.34]
[1727508946336,0.3703,2683.9,2683.8,0.37247]
[1727508946535,1.15162,2684.2,2683.9,0.37245]
[1727508946746,1.52192,2684.2,2684.1,1.34]
[1727508947132,5.24752,2684.2,2684.1,1.34]
[1727508947333,1.52192,2684.2,2684.1,1.34]
[1727508947939,5.24752,2684.2,2684.1,1.34]
[1727508948240,1.52192,2684.2,2684.1,1.34]
[1727508956640,2.98554685,2684.2,2684.1,1.34]
[1727508956842,1.52192,2684.2,2684.1,1.34]
[1727508957850,6.17857,2684.2,2684.1,1.34]
[1727508958050,8.13285276,2684.2,2684.1,1.34]
[1727508959343,6.17857,2684.2,2684.1,1.34]
[1727508960446,8.62501564,2684.2,2684.1,1.34]
[1727508960638,8.62501564,2684.2,2684.0,1.34]
[1727508960639,1.30351,2684.1,2684.0,1.34]
[1727508961143,6.04604001,2684.1,2684.0,1.34]
[1727508961345,4.09803,2684.1,2684.0,1.34]
[1727508961551,5.02911,2684.1,2684.0,1.34]
[1727508965848,7.47555564,2684.1,2684.0,1.34]
[1727508967450,5.02911,2684.1,2684.0,1.34]
[1727508969653,0.37243,2684.1,2684.0,1.34]
[1727508977360,0.37244,2684.0,2683.9,0.4047]
[1727508977759,4.09804,2684.0,2683.9,0.4047]
[1727508980964,0.37244,2684.0,2683.9,0.4047]
[1727508986669,3.2078,2684.1,2683.9,0.4047]
[1727508986872,0.37244,2684.0,2683.9,0.4047]
[1727508991470,3.30898412,2684.0,2683.9,0.4047]
[1727508996561,3.30578729,2684.0,2683.9,0.4047]
[1727508997769,0.37244,2684.0,2683.9,0.4047]
[1727508998673,3.30580377,2684.0,2683.9,0.4047]
[1727509002477,0.37244,2684.0,2683.9,0.4047]
[1727509004981,6.14116377,2684.1,2683.9,0.4047]
[1727509005576,0.37244,2684.0,2683.9,0.4047]
[1727509006474,2.93336377,2684.1,2683.9,0.4047]
[1727509006672,2.93336377,2684.2,2684.0,0.37244]
[1727509006980,0.37243,2684.2,2684.1,0.403]
[1727509007384,3.58023,2684.2,2684.1,0.403]
[1727509007880,6.51353734,2684.2,2684.1,0.403]
[1727509008275,3.58023,2684.2,2684.1,0.403]
[1727509010372,7.00619814,2684.2,2684.1,0.403]
[1727509010973,3.58023,2684.2,2684.1,0.403]
[1727509012082,7.00619814,2684.2,2684.1,0.403]
[1727509012684,3.30551998,2684.2,2684.1,0.403]
[1727509013079,0.37243,2684.2,2684.1,0.403]
[1727509013584,3.79839814,2684.2,2684.1,0.403]
[1727509013785,0.37243,2684.2,2684.1,0.403]
[1727509017390,3.30550047,2684.2,2684.1,0.403]
[1727509017588,0.37243,2684.2,2684.1,0.403]
[1727509018482,2.93304894,2684.2,2684.1,1.743]
[1727509018687,6.14084894,2684.3,2684.1,2.11543]
[1727509018879,6.51324894,2684.3,2684.1,2.11543]
[1727509019181,6.51324894,2684.3,2684.2,0.393]
[1727509022284,3.2078,2684.3,2684.2,0.393]
[1727509023489,0.37239,2684.4,2684.2,0.393]
[1727509023693,0.37239,2684.4,2684.3,1.735]
[1727509023694,3.30543894,2684.4,2684.3,1.735]
[1727509023890,0.37239,2684.4,2684.3,1.735]
[1727509024590,3.30542894,2684.5,2684.3,1.735]
[1727509024786,0.37239,2684.4,2684.3,1.735]
[1727509026488,3.30542894,2684.5,2684.3,1.735]
[1727509026797,2.93304894,2684.6,2684.4,9.07731999]
[1727509027093,3.2078,2684.7,2684.5,0.3765]
[1727509027094,3.58015,2684.7,2684.5,0.3765]
[1727509027293,3.58015,2684.7,2684.6,1.34]
[1727509027494,0.37235,2684.7,2684.6,1.34]
[1727509028185,0.3831,2684.8,2684.6,1.34]
[1727509028186,3.31614894,2684.8,2684.6,1.34]
[1727509028396,0.3831,2684.8,2684.6,1.34]
[1727509028591,0.37235,2684.7,2684.6,1.34]
[1727509028793,0.75544,2684.8,2684.6,1.34]
[1727509028988,0.75544,2684.8,2684.7,0.3936]
[1727509033599,3.19346846,2684.8,2684.7,0.3936]
[1727509033792,0.75544,2684.8,2684.7,0.3936]
[1727509034387,3.19325045,2684.8,2684.7,0.3936]
[1727509034989,2.82091045,2684.8,2684.7,0.3936]
[1727509035298,3.19324045,2684.8,2684.7,0.3936]
[1727509036695,2.82091045,2684.8,2684.7,0.3936]
[1727509037000,0.75543,2684.8,2684.7,0.3936]
[1727509038492,2.43781045,2684.9,2684.7,0.76593]
[1727509038793,6.39482045,2685.0,2684.8,1.34]
[1727509038995,0.37232,2684.9,2684.8,1.7296]
[1727509039190,0.37233,2684.8,2684.7,0.3936]
[1727509039391,0.37235,2684.7,2684.6,0.3896]
[1727509039602,1.50195,2684.7,2684.6,0.3896]
[1727509039796,3.4510461,2684.7,2684.6,0.3896]
[1727509040297,1.50195,2684.7,2684.6,0.3896]
[1727509040499,3.4510461,2684.7,2684.6,0.3896]
[1727509040688,1.50195,2684.7,2684.6,0.3896]
[1727509041094,3.4510461,2684.7,2684.6,0.3896]
[1727509042002,1.50195,2684.7,2684.6,0.3896]
[1727509043097,3.4510461,2684.7,2684.6,0.3896]
[1727509044099,1.50195,2684.7,2684.6,0.3896]
[1727509044700,0.37236,2684.6,2684.5,1.34]
[1727509044905,1.83403453,2684.6,2684.5,0.4064]
[1727509045204,0.37236,2684.6,2684.5,0.4064]
[1727509045499,6.2864961,2684.7,2684.4,0.37239]
[1727509045709,0.37239,2684.4,2684.3,0.77109]
[1727509045901,0.97452066,2684.4,2684.3,0.77109]
[1727509046202,1.38312066,2684.4,2684.2,1.16561]
[1727509046402,0.97457444,2684.3,2684.2,1.16561]
[1727509046796,0.97457444,2684.3,2684.2,2.50561]
[1727509047806,2.24276488,2684.4,2684.3,0.3724]
[1727509048009,2.24304571,2684.4,2684.3,0.3724]
[1727509049806,2.24304571,2684.4,2684.2,2.1332]
[1727509050106,0.97482495,2684.3,2684.2,2.50562]
[1727509050609,2.24304571,2684.4,2684.3,0.3724]
[1727509051205,2.24304571,2684.4,2683.9,0.3682]
[1727509051206,0.4086,2684.4,2684.0,0.37244]
[1727509051510,1.83488539,2684.1,2684.0,0.3855]
[1727509052005,2.23828539,2684.1,2684.0,0.3855]
[1727509052206,2.238505,2684.1,2684.0,0.3855]
[1727509052407,2.23855557,2684.1,2684.0,0.3855]
[1727509052603,2.23858935,2684.1,2684.0,0.3855]
[1727509053113,2.23855697,2684.1,2684.0,0.3855]
[1727509053413,2.23867334,2684.1,2684.0,0.3855]
[1727509053606,0.77583,2684.1,2684.0,0.3855]
[1727509053811,1.9490961,2684.2,2684.1,0.37243]
[1727509054110,2.3214961,2684.4,2684.2,0.37242]
[1727509054320,2.3214961,2684.4,2684.3,0.3858]
[1727509054515,2.3214961,2684.4,2684.3,0.7582]
[1727509055202,2.3214961,2684.4,2684.3,1.1527]
[1727509057299,0.3724,2684.4,2684.3,0.7803]
[1727509058405,2.43781045,2684.5,2684.3,0.7803]
[1727509058610,2.81019045,2684.5,2684.3,0.7803]
[1727509060214,2.81019045,2684.5,2684.3,1.15269]
[1727509061207,1.95154612,2684.4,2684.3,1.15269]
[1727509061509,2.81019045,2684.5,2684.3,1.15269]
[1727509061825,0.37239,2684.4,2684.3,0.7803]
[1727509062312,2.81020045,2684.4,2684.3,0.7803]
[1727509062513,0.37239,2684.4,2684.3,0.7803]
[1727509063011,0.3724,2684.3,2684.2,0.3723]
[1727509063213,0.7661,2684.3,2684.1,0.37242]
[1727509063412,1.9523283,2684.2,2684.1,0.37242]
[1727509067816,3.20392045,2684.3,2684.2,0.37242]
[1727509067817,2.83151045,2684.3,2684.2,0.37242]
[1727509068212,2.43781045,2684.3,2684.2,0.37242]
[1727509068413,0.3724,2684.4,2684.3,0.3724]
[1727509068614,2.81347974,2684.4,2684.3,1.1461]
[1727509068811,2.81347974,2684.4,2684.3,1.1634]
[1727509069413,2.44107974,2684.4,2684.3,1.5358]
[1727509070208,2.81345974,2684.5,2684.3,1.5358]
[1727509070523,2.81345974,2684.5,2684.3,1.1634]
[1727509070524,0.37239,2684.4,2684.3,1.1634]
[1727509070713,3.19216974,2684.4,2684.3,0.7945]
[1727509077318,2.81977974,2684.4,2684.3,1.1669]
[1727509077521,3.19216974,2684.4,2684.3,0.7945]
[1727509083729,2.81977974,2684.4,2684.3,1.1669]
[1727509083931,3.19216974,2684.4,2684.3,0.7945]
[1727509084427,0.3724,2684.3,2684.1,0.37242]
[1727509084631,1.95347779,2684.2,2684.1,0.37242]
[1727509085530,2.81347974,2684.3,2684.1,0.37242]
[1727509085726,1.95370327,2684.2,2684.1,0.37242]
[1727509087030,2.32612327,2684.2,2684.1,0.37242]
[1727509087432,0.37242,2684.2,2684.1,0.37242]
[1727509088725,0.76702,2684.2,2684.1,0.37242]
[1727509089130,0.37243,2684.1,2684.0,6.56364]
[1727509089331,2.32663786,2684.1,2684.0,6.56364]
[1727509089735,1.95420786,2684.1,2684.0,6.56364]
[1727509090226,1.95420786,2684.1,2684.0,3.9842]
[1727509090227,2.32663786,2684.1,2684.0,3.9842]
[1727509090421,3.20040974,2684.1,2684.0,0.3865]
[1727509092228,3.20040974,2684.1,2683.8,0.37247]
[1727509092229,4.9347,2684.1,2683.8,0.37247]
[1727509092531,2.44374641,2683.9,2683.8,0.37246]
[1727509093335,2.81620641,2683.9,2683.8,0.37246]
[1727509093632,0.37246,2683.9,2683.8,0.37246]
[1727509093827,2.81619641,2684.0,2683.8,0.37246]
[1727509094023,2.44374641,2684.0,2683.9,0.37246]
[1727509094229,6.03844641,2684.1,2684.0,0.37244]
[1727509094432,6.03785058,2684.1,2684.0,0.37244]
[1727509095828,5.65095058,2684.1,2684.0,0.37244]
[1727509096034,5.65095058,2684.1,2684.0,5.43804]
[1727509097935,5.65095058,2684.1,2684.0,1.71244]
[1727509098631,2.44315058,2684.1,2684.0,1.71244]
[1727509099333,2.81255058,2684.1,2684.0,1.71244]
[1727509101128,2.81255058,2684.1,2684.0,0.37244]
[1727509104428,2.44315058,2684.2,2684.1,0.37243]
[1727509104635,2.44315058,2684.2,2684.1,1.16253]
[1727509104928,2.81557058,2684.2,2684.1,1.16253]
[1727509105329,2.44315058,2684.2,2684.1,1.16253]
[1727509113837,2.81557058,2684.2,2684.1,1.16253]
[1727509114036,2.44315058,2684.2,2684.1,0.75793]